bitfinex-derivatives/quotes_SOLF0:USTF0_20220106
["timestamp","ask_amount","ask_price","bid_price","bid_amount"]
[1641447107954,11.95011241,150.44,150.37,27.66479]
[1641447108955,105.20614065,150.47,150.4,4.69647634]
[1641447109359,4.0,150.45,150.4,4.69647634]
[1641447109555,4.0,150.43,150.4,4.69647634]
[1641447109756,10.927,150.43,150.34,63.302]
[1641447109956,10.927,150.43,150.39,4.6969039]
[1641447110355,6.927,150.43,150.39,4.6969039]
[1641447110555,4.0,150.41,150.39,4.6969039]
[1641447110756,31.66479,150.42,150.34,63.302]
[1641447110958,4.0,150.4,150.33,27.66479]
[1641447111157,51.66479,150.42,150.37,4.6974041]
[1641447111357,4.0,150.41,150.37,4.6974041]
[1641447111556,4.0,150.38,150.33,27.66479]
[1641447111757,4.0,150.38,150.29,67.8618]
[1641447111959,4.0,150.37,150.29,67.8618]
[1641447112560,4.0,150.36,150.24,6.64540138]
[1641447112760,4.0,150.35,150.26,27.66479]
[1641447113462,4.0,150.35,150.25,68.2482]
[1641447113662,4.0,150.35,150.24,27.66479]
[1641447113663,4.0,150.31,150.24,27.66479]
[1641447113864,10.65048382,150.3,150.24,27.66479]
[1641447114062,4.0,150.29,150.23,18.05009259]
[1641447114862,27.66479,150.27,150.23,18.05009259]
[1641447115064,6.65225345,150.26,150.23,18.05009259]
[1641447115262,6.65225345,150.26,150.23,11.21451582]
[1641447115464,6.65225345,150.26,150.21,1.38816329]
[1641447115864,10.65225345,150.26,150.21,1.38816329]
[1641447116063,6.65358129,150.23,150.21,1.38816329]
[1641447116262,15.42758129,150.23,150.21,1.38816329]
[1641447116462,4.0,150.22,150.19,11.21451582]
[1641447116667,4.0,150.22,150.12,62.3112]
[1641447116869,6.65579553,150.18,150.1,122.65724214]
[1641447117071,11.27479553,150.18,150.1,84.14725655]
[1641447117269,4.619,150.18,150.1,84.14725655]
[1641447118371,4.619,150.18,150.11,6.83528333]
[1641447118873,25.27158889,150.2,150.11,6.83528333]
[1641447120072,29.27158889,150.2,150.11,6.83528333]
[1641447120272,4.0,150.19,150.11,6.83528333]
[1641447120471,6.295,150.19,150.11,6.83528333]
[1641447120872,27.66479,150.16,150.11,6.83528333]
[1641447121472,27.66479,150.16,150.07,22.56241204]
[1641447121674,27.66479,150.16,150.07,6.83528333]
[1641447123176,27.66479,150.16,150.07,10.83528333]
[1641447124072,27.66479,150.16,150.07,6.83528333]
[1641447124273,34.92579,150.16,150.07,6.83528333]
[1641447128680,25.27158889,150.2,150.1,4.0]
[1641447128880,25.27158889,150.2,150.11,27.66479]
[1641447129081,6.65668164,150.16,150.07,6.83528333]
[1641447129480,12.59368164,150.16,150.07,6.83528333]
[1641447129881,12.59368164,150.16,150.12,6.83528333]
[1641447130482,16.59368164,150.16,150.12,6.83528333]
[1641447130883,27.66479,150.13,150.12,6.83528333]
[1641447131084,27.66479,150.13,150.06,67.348]
[1641447131085,27.66479,150.13,150.07,6.83528333]
[1641447132386,27.66479,150.13,150.04,98.09619]
[1641447132387,27.66479,150.13,150.05,18.05042854]
[1641447132590,27.66479,150.15,150.05,18.05042854]
[1641447133587,27.66479,150.15,150.05,6.83528333]
[1641447134892,27.66479,150.15,150.07,27.66479]
[1641447135292,5.937,150.16,150.09,4.0]
[1641447135691,5.937,150.16,150.08,4.0]
[1641447135891,5.937,150.16,150.07,37.56279]
[1641447136292,5.937,150.16,150.07,33.56279]
[1641447136495,5.937,150.16,150.08,6.83528333]
[1641447138894,5.937,150.16,150.1,4.0]
[1641447139298,5.937,150.16,150.08,6.83528333]
[1641447139699,5.937,150.16,150.08,18.05042854]
[1641447140699,5.937,150.16,150.08,22.05042854]
[1641447140899,5.937,150.16,150.1,27.66479]
[1641447141099,27.66479,150.19,150.1,27.66479]
[1641447142100,27.66479,150.19,150.1,31.66479]
[1641447142299,27.66479,150.19,150.1,27.66479]
[1641447142501,44.16723666,150.25,150.18,4.0]
[1641447142700,44.16723666,150.25,150.1,27.66479]
[1641447142701,37.51454065,150.25,150.21,4.0]
[1641447143002,37.51454065,150.25,150.24,27.66479]
[1641447144001,34.31461045,150.32,150.24,34.50007333]
[1641447144902,34.31461045,150.32,150.24,6.83528333]
[1641447145101,34.31461045,150.32,150.21,27.66479]
[1641447145403,11.97346033,150.31,150.23,5.296]
[1641447147704,11.97346033,150.31,150.22,6.83175055]
[1641447147905,15.97346033,150.31,150.22,6.83175055]
[1641447150505,11.97346033,150.31,150.23,4.0]
[1641447150705,11.97346033,150.31,150.23,5.377]
[1641447150905,11.97346033,150.31,150.29,27.66479]
[1641447151112,11.97346033,150.31,150.26,27.66479]
[1641447151508,37.51454065,150.32,150.26,27.66479]
[1641447151708,37.51454065,150.35,150.27,4.0]
[1641447152909,44.16259277,150.36,150.29,27.66479]
[1641447153310,37.51454065,150.36,150.29,27.66479]
[1641447153611,37.51454065,150.36,150.32,4.0]
[1641447153809,37.51454065,150.36,150.33,4.0]
[1641447154009,4.065e-05,150.36,150.33,4.0]
[1641447154211,28.95786384,150.37,150.29,27.66479]
[1641447154410,56.48246655,150.41,150.33,4.0]
[1641447154611,56.48246655,150.41,150.32,4.0]
[1641447154810,56.48246655,150.41,150.33,4.0]
[1641447155010,56.48246655,150.41,150.36,27.66479]
[1641447155416,6.64407681,150.45,150.36,27.66479]
[1641447155611,10.64407681,150.45,150.36,27.66479]
[1641447155811,4.0,150.44,150.3,4.0]
[1641447156015,10.64407681,150.45,150.3,4.0]
[1641447156216,4.0,150.44,150.3,4.0]
[1641447156814,3.30708889,150.43,150.31,1.39132702]
[1641447157013,27.66479,150.42,150.35,27.66479]
[1641447157819,3.30708889,150.41,150.35,27.66479]
[1641447158219,3.30708889,150.41,150.35,31.66479]
[1641447158424,3.30708889,150.41,150.36,4.0]
[1641447158821,3.30708889,150.44,150.36,5.39148234]
[1641447159021,3.30708889,150.44,150.41,27.66479]
[1641447160025,3.30708889,150.46,150.41,27.66479]
[1641447163726,3.30708889,150.46,150.36,4.0]
[1641447163727,3.30708889,150.46,150.35,27.66479]
[1641447163928,10.64385609,150.45,150.35,27.66479]
[1641447164126,4.0,150.44,150.28,6.64385609]
[1641447164326,4.0,150.43,150.28,10.64385609]
[1641447164526,4.0,150.42,150.36,1.39157937]
[1641447164726,10.64518058,150.42,150.36,1.39157937]
[1641447165127,27.66479,150.41,150.36,1.39157937]
[1641447165526,3.30708889,150.41,150.33,4.0]
[1641447165926,3.30708889,150.41,150.35,4.0]
[1641447166126,3.30708889,150.41,150.36,4.0]
[1641447166728,3.30708889,150.43,150.36,4.0]
[1641447167129,3.30708889,150.43,150.39,27.66479]
[1641447167628,3.30708889,150.46,150.39,31.66479]
[1641447167829,3.30708889,150.46,150.39,27.66479]
[1641447168228,3.30708889,150.46,150.4,4.0]
[1641447168431,3.30708889,150.46,150.4,1.39157937]
[1641447168632,3.30708889,150.49,150.41,4.0]
[1641447169029,3.30708889,150.49,150.4,5.39157937]
[1641447169232,3.30708889,150.49,150.46,27.66479]
[1641447170029,3.30708889,150.5,150.46,27.66479]
[1641447170328,3.30708889,150.5,150.42,1.39157937]
[1641447171130,7.30708889,150.5,150.42,1.39157937]
[1641447171330,7.30708889,150.5,150.43,27.66479]
[1641447171531,3.30708889,150.5,150.43,27.66479]
[1641447174334,3.30708889,150.5,150.42,4.69627503]
[1641447174734,37.56640888,150.49,150.42,4.69627503]
[1641447175335,37.56640888,150.49,150.44,27.66479]
[1641447175534,4.0,150.48,150.42,4.69627503]
[1641447176134,4.0,150.47,150.42,4.69627503]
[1641447176334,4.0,150.44,150.41,4.69627503]
[1641447176534,4.0,150.43,150.41,4.69627503]
[1641447176736,10.841,150.43,150.41,4.69627503]
[1641447177135,4.0,150.42,150.4,1.39180237]
[1641447177336,30.97187889,150.42,150.4,1.39180237]
[1641447177534,3.30708889,150.42,150.36,1.39180237]
[1641447178535,3.30708889,150.42,150.35,1.39180237]
[1641447178936,3.30708889,150.42,150.37,4.0]
[1641447179135,3.30708889,150.42,150.36,4.0]
[1641447179337,3.30708889,150.42,150.41,27.66479]
[1641447180536,6.841,150.43,150.31,72.77273213]
[1641447181136,6.841,150.43,150.31,68.77273213]
[1641447181336,3.30612724,150.42,150.35,27.66479]
[1641447181938,7.30612724,150.42,150.35,27.66479]
[1641447182142,15.24719767,150.42,150.36,1.39124269]
[1641447186344,3.30612724,150.42,150.36,1.39124269]
[1641447187347,3.30612724,150.42,150.38,27.66479]
[1641447188347,3.30612724,150.42,150.35,27.66479]
[1641447188549,4.0,150.44,150.35,27.66479]
[1641447188848,4.0,150.43,150.35,27.66479]
[1641447189049,4.0,150.42,150.35,27.66479]
[1641447189251,4.0,150.39,150.29,4.0]
[1641447189449,4.0,150.39,150.36,1.39116006]
[1641447190249,4.0,150.38,150.36,1.39116006]
[1641447190650,7.30612724,150.38,150.32,1.39116006]
[1641447190849,3.30612724,150.38,150.32,1.39116006]
[1641447193353,15.24719767,150.39,150.32,1.39116006]
[1641447193654,19.24719767,150.39,150.32,1.39116006]
[1641447193853,4.0,150.38,150.32,1.39116006]
[1641447194255,15.24719767,150.39,150.32,1.39116006]
[1641447194454,4.0,150.37,150.32,1.39116006]
[1641447194655,4.0,150.38,150.32,1.39116006]
[1641447194854,4.0,150.37,150.32,1.39116006]
[1641447195259,4.0,150.36,150.32,1.39116006]
[1641447196060,3.30612724,150.37,150.32,1.39116006]
[1641447196260,3.30612724,150.35,150.32,1.39116006]
[1641447197964,3.30612724,150.37,150.32,1.39116006]
[1641447198663,15.24719767,150.39,150.32,1.39116006]
[1641447198963,19.24719767,150.39,150.32,1.39116006]
[1641447199164,15.24719767,150.39,150.32,1.39116006]
[1641447199966,19.24719767,150.39,150.32,1.39116006]
[1641447200568,56.81360655,150.39,150.32,1.39116006]
[1641447201369,3.30612724,150.38,150.32,1.39116006]
[1641447202669,4.0,150.37,150.32,1.39116006]
[1641447203169,7.30612724,150.38,150.32,1.39116006]
[1641447203369,30.97091724,150.38,150.32,1.39116006]
[1641447203969,34.97091724,150.38,150.32,1.39116006]
[1641447204171,34.97091724,150.38,150.27,27.66479]
[1641447204472,19.24719767,150.37,150.27,27.66479]
[1641447204671,15.24719767,150.37,150.27,27.66479]
[1641447205070,19.24719767,150.37,150.27,27.66479]
[1641447205271,3.30612724,150.36,150.28,8.23267478]
[1641447208172,15.24719767,150.37,150.28,8.23267478]
[1641447209574,15.24719767,150.37,150.31,27.66479]
[1641447210376,52.81360655,150.39,150.31,27.66479]
[1641447211277,56.81360655,150.39,150.32,1.39085753]
[1641447211676,4.0,150.37,150.32,1.39085753]
[1641447212176,4.0,150.36,150.32,1.39085753]
[1641447212579,7.30612724,150.38,150.32,1.39085753]
[1641447212978,3.30612724,150.35,150.32,1.39085753]
[1641447213478,41.56640888,150.38,150.28,1.39085753]
[1641447213479,3.30612724,150.36,150.28,1.39085753]
[1641447213680,3.30612724,150.36,150.28,8.23270973]
[1641447214682,15.24719767,150.36,150.28,1.39085753]
[1641447215482,19.24719767,150.36,150.28,1.39085753]
[1641447216084,15.24719767,150.36,150.28,1.39085753]
[1641447216383,4.0,150.34,150.28,1.39085753]
[1641447216583,4.0,150.31,150.28,1.39085753]
[1641447217386,4.0,150.31,150.18,60.48246655]
[1641447217584,4.0,150.29,150.21,27.66479]
[1641447217785,63.0136,150.3,150.21,27.66479]
[1641447218286,63.0136,150.3,150.23,6.84204412]
[1641447218685,67.0136,150.3,150.23,6.84204412]
[1641447218885,63.0136,150.3,150.23,6.84204412]
[1641447219285,63.0136,150.3,150.22,6.84204412]
[1641447221889,37.56640888,150.33,150.22,10.84204412]
[1641447222091,37.56640888,150.33,150.25,4.0]
[1641447222591,11.95766697,150.34,150.25,4.0]
[1641447223591,11.95766697,150.34,150.29,27.66479]
[1641447223793,11.95766697,150.34,150.27,27.66479]
[1641447224393,15.95766697,150.34,150.27,27.66479]
[1641447224595,4.0,150.34,150.27,27.66479]
[1641447224793,4.0,150.34,150.24,18.06378122]
[1641447225293,69.6387,150.35,150.24,18.06378122]
[1641447225494,11.95974706,150.34,150.24,6.84204412]
[1641447225695,39.62453706,150.34,150.24,34.50683412]
[1641447225998,11.95974706,150.34,150.24,34.50683412]
[1641447226195,11.95974706,150.34,150.24,38.50683412]
[1641447226395,11.95974706,150.34,150.25,4.0]
[1641447226596,65.6387,150.35,150.26,4.0]
[1641447227296,65.6387,150.35,150.25,10.84204412]
[1641447227696,65.6387,150.35,150.27,27.66479]
[1641447231804,4.0,150.34,150.24,27.66479]
[1641447232001,4.0,150.33,150.24,27.66479]
[1641447232202,4.0,150.34,150.24,27.66479]
[1641447232401,4.0,150.32,150.24,27.66479]
[1641447232602,4.0,150.33,150.24,27.66479]
[1641447232801,4.0,150.32,150.24,27.66479]
[1641447233804,6.65004156,150.31,150.24,27.66479]
[1641447235905,37.56640888,150.32,150.24,27.66479]
[1641447236604,28.94513162,150.33,150.24,27.66479]
[1641447236605,11.96085507,150.33,150.24,27.66479]
[1641447237406,53.52726395,150.33,150.26,4.70116198]
[1641447237705,34.31483156,150.31,150.26,4.70116198]
[1641447238404,71.88124044,150.31,150.25,4.70116198]
[1641447239405,11.96085507,150.3,150.25,4.70116198]
[1641447240609,15.96085507,150.3,150.25,4.70116198]
[1641447241207,15.96085507,150.3,150.24,4.70116198]
[1641447242309,15.96085507,150.3,150.23,4.70195167]
[1641447242310,53.52726395,150.3,150.23,4.70195167]
[1641447243211,6.65114732,150.29,150.24,4.70174875]
[1641447243811,10.65114732,150.29,150.24,4.70174875]
[1641447244012,4.0,150.28,150.24,4.70174875]
[1641447244214,4.0,150.27,150.23,4.70199556]
[1641447244413,4.0,150.24,150.17,66.1719]
[1641447244615,6.226,150.24,150.12,195.10586655]
[1641447244812,6.226,150.24,150.12,56.48246655]
[1641447245012,6.65402402,150.22,150.12,56.48246655]
[1641447245212,71.05932402,150.22,150.12,56.48246655]
[1641447245411,75.05932402,150.22,150.12,56.48246655]
[1641447245615,71.05932402,150.22,150.12,56.48246655]
[1641447245913,98.72411402,150.22,150.12,27.66479]
[1641447247112,27.66479,150.24,150.12,31.66479]
[1641447247313,95.43969,150.24,150.12,31.66479]
[1641447247514,95.43969,150.24,150.13,6.84137044]
[1641447247713,95.43969,150.24,150.16,27.66479]
[1641447248214,6.65468823,150.21,150.16,27.66479]
[1641447249616,6.65468823,150.21,150.12,27.66479]
[1641447251216,18.62641009,150.23,150.12,27.66479]
[1641447251417,18.62641009,150.23,150.13,6.84347379]
[1641447251818,18.62641009,150.23,150.15,27.66479]
[1641447252517,6.65358129,150.23,150.15,27.66479]
[1641447252917,95.43969,150.24,150.15,27.66479]
[1641447253518,95.43969,150.24,150.16,6.84347379]
[1641447255519,6.65424541,150.22,150.16,6.84347379]
[1641447256521,6.65424541,150.22,150.13,6.84347379]
[1641447258224,6.65424541,150.22,150.13,8.2329558]
[1641447258422,3.31478733,150.21,150.13,8.2329558]
[1641447259424,3.31478733,150.21,150.14,4.0]
[1641447259624,3.31478733,150.21,150.15,4.0]
[1641447259826,3.31478733,150.21,150.2,27.66479]
[1641447260029,40.879675,150.23,150.2,27.66479]
[1641447260228,3.31326612,150.23,150.2,27.66479]
[1641447261427,37.56640888,150.27,150.2,27.66479]
[1641447262633,49.53597576,150.28,150.2,27.66479]
[1641447263730,49.53597576,150.28,150.15,118.77738]
[1641447263929,6.65181096,150.27,150.15,118.77738]
[1641447264631,4.0,150.25,150.15,118.77738]
[1641447264833,6.65380265,150.23,150.16,6.84310994]
[1641447265633,6.65380265,150.23,150.15,63.4478]
[1641447265833,34.31859265,150.23,150.15,63.4478]
[1641447267637,11.96956688,150.22,150.15,63.4478]
[1641447267837,11.96956688,150.22,150.13,27.66479]
[1641447268236,11.96956688,150.22,150.14,6.84327274]
[1641447270539,4.0,150.21,150.14,6.84327274]
[1641447270837,4.0,150.2,150.14,6.84327274]
[1641447271140,4.0,150.21,150.14,6.84327274]
[1641447271738,27.66479,150.19,150.14,6.84327274]
[1641447272140,27.66479,150.19,150.13,27.66479]
[1641447274643,4.0,150.2,150.13,27.66479]
[1641447274944,37.56640888,150.22,150.13,27.66479]
[1641447275343,4.0,150.21,150.13,27.66479]
[1641447275543,10.65513111,150.2,150.13,27.66479]
[1641447275748,6.65513111,150.2,150.13,27.66479]
[1641447277445,10.65513111,150.2,150.13,27.66479]
[1641447277644,4.0,150.19,150.13,27.66479]
[1641447277849,6.65623856,150.17,150.13,27.66479]
[1641447282048,10.65623856,150.17,150.05,65.2417]
[1641447282248,4.0,150.16,150.05,65.2417]
[1641447282451,4.0,150.15,150.05,65.2417]
[1641447282649,4.0,150.14,150.05,65.2417]
[1641447282849,10.65778961,150.14,150.05,65.2417]
[1641447283049,4.0,150.13,150.05,65.2417]
[1641447283252,4.0,150.13,150.06,6.84349292]
[1641447283452,4.0,150.12,150.06,6.84349292]
[1641447283651,10.894,150.12,150.06,6.84349292]
[1641447283852,45.21746626,150.12,150.06,6.84349292]
[1641447284452,45.21746626,150.12,150.02,113.51997976]
[1641447284651,41.21746626,150.12,150.02,113.51997976]
[1641447285051,34.55879,150.12,150.03,4.0]
[1641447285251,6.894,150.12,150.02,113.51997976]
[1641447285452,6.894,150.12,150.03,6.84349292]
[1641447285651,34.32257961,150.14,150.03,6.84349292]
[1641447285853,34.32257961,150.14,150.06,27.66479]
[1641447286051,27.66479,150.14,150.06,27.66479]
[1641447286252,68.1169,150.15,150.06,27.66479]
[1641447287053,68.1169,150.15,150.07,6.84349292]
[1641447289958,68.1169,150.15,150.04,4.0]
[1641447290159,68.1169,150.15,150.03,22.07215459]
[1641447291161,68.1169,150.15,150.03,18.07215459]
[1641447291763,6.65778961,150.14,150.03,18.07215459]
[1641447292061,6.65867626,150.12,150.03,18.07215459]
[1641447293260,6.65867626,150.12,150.03,6.84349292]
[1641447293862,27.66479,150.11,150.03,6.84349292]
[1641447294461,31.66479,150.11,150.03,6.84349292]
[1641447294661,27.66479,150.11,150.03,6.84349292]
[1641447295964,27.66479,150.11,150.02,6.84349292]
[1641447297464,6.65978489,150.09,150.02,6.84349292]
[1641447300467,3.31817504,150.08,150.02,8.23297494]
[1641447302770,3.31817504,150.08,150.02,6.84349292]
[1641447302972,3.31817504,150.08,149.99,19.46280815]
[1641447305082,3.31817504,150.08,149.99,8.23297494]
[1641447305272,3.31817504,150.08,150.05,4.70785887]
[1641447307273,3.31817504,150.08,150.04,4.70785887]
[1641447307477,6.6613376,150.06,150.04,4.70785887]
[1641447308376,3.31817504,150.05,150.04,4.70785887]
[1641447309276,6.6613376,150.06,149.99,8.23297494]
[1641447309479,6.66022845,150.08,149.99,8.23297494]
[1641447309979,64.9915,150.1,149.99,12.23297494]
[1641447310177,3.31854466,150.07,150.06,4.70796507]
[1641447310378,4.466e-05,150.07,150.06,4.70796507]
[1641447311378,37.56640888,150.12,150.03,4.0]
[1641447311584,106.53071209,150.16,150.05,4.0]
[1641447311780,106.53071209,150.16,150.04,4.0]
[1641447312080,106.53071209,150.16,150.1,27.66479]
[1641447313079,68.96430321,150.16,150.12,4.70614415]
[1641447313278,6.65690321,150.16,150.12,4.70614415]
[1641447313880,10.65690321,150.16,150.12,4.70614415]
[1641447314079,27.66479,150.15,150.12,4.70614415]
[1641447314482,27.66479,150.15,150.06,63.6931]
[1641447314680,27.66479,150.15,150.1,4.70645061]
[1641447314681,92.81609,150.15,150.1,4.70645061]
[1641447314882,10.65845457,150.12,150.1,4.70645061]
[1641447315684,10.65845457,150.12,149.98,68.3622]
[1641447315888,10.65845457,150.12,150.08,4.70723958]
[1641447316085,27.66479,150.11,150.08,4.70723958]
[1641447317183,27.66479,150.11,150.07,4.70723965]
[1641447318185,27.66479,150.11,150.01,6.84422084]
[1641447318386,27.66479,150.11,150.06,4.70756644]
[1641447319287,27.66479,150.11,150.01,6.84422084]
[1641447319489,27.66479,150.11,150.01,10.84422084]
[1641447319887,37.56640888,150.13,150.01,6.84422084]
[1641447320088,37.56640888,150.13,150.12,27.66479]
[1641447320289,37.56640888,150.15,150.12,27.66479]
[1641447321390,37.56640888,150.15,150.13,4.70467843]
[1641447321592,6.65623856,150.17,150.13,4.70467843]
[1641447322391,6.65623856,150.17,150.12,27.66479]
[1641447322791,11.97483436,150.19,150.12,27.66479]
[1641447323591,11.97483436,150.19,150.14,4.70438596]
[1641447324093,11.97483436,150.19,150.16,27.66479]
[1641447325093,11.97483436,150.21,150.16,32.36857473]
[1641447325999,11.97483436,150.21,150.16,27.66479]
[1641447326194,49.54124324,150.24,150.17,4.70346034]
[1641447327996,49.54124324,150.24,150.12,27.66479]
[1641447328897,37.56640888,150.23,150.16,4.70380967]
[1641447329798,37.56640888,150.23,150.13,6.84376351]
[1641447329996,37.56640888,150.23,150.15,27.66479]
[1641447330601,41.56640888,150.23,150.13,6.84376351]
[1641447330801,10.65402402,150.22,150.13,6.84376351]
[1641447330999,6.65402402,150.22,150.13,6.84376351]
[1641447331201,6.65513111,150.2,150.13,6.84376351]
[1641447331400,10.65646009,150.17,150.06,121.08866655]
[1641447331605,6.65623856,150.17,150.07,68.7347]
[1641447332205,27.66479,150.15,150.07,68.7347]
[1641447333705,27.66479,150.15,150.08,6.84394887]
[1641447336908,27.66479,150.15,150.07,68.7347]
[1641447337109,4.70534971,150.11,150.07,68.7347]
[1641447337309,4.70534971,150.11,150.05,27.66479]
[1641447337908,4.70534971,150.11,150.07,4.0]
[1641447338108,37.56640888,150.18,150.1,59.32958]
[1641447338308,37.56640888,150.18,150.13,4.0]
[1641447338709,10.56720888,150.18,150.13,4.0]
[1641447339311,8.88e-06,150.18,150.13,4.0]
[1641447339509,56.48246655,150.22,150.13,4.0]
[1641447339710,16.99390131,150.25,150.13,4.0]
[1641447340111,16.99390131,150.25,150.19,27.66479]
[1641447340510,67.8794,150.26,150.19,27.66479]
[1641447340710,11.96170734,150.25,150.19,27.66479]
[1641447342313,11.96170734,150.25,150.19,20.13982778]
[1641447342713,11.96170734,150.25,150.17,27.66479]
[1641447342913,11.96170734,150.25,150.12,65.1702]
[1641447343415,15.96170734,150.25,150.12,65.1702]
[1641447343614,4.0,150.23,150.12,65.1702]
[1641447343915,15.96170734,150.25,150.12,65.1702]
[1641447344114,27.66479,150.24,150.14,27.66479]
[1641447344316,4.0,150.23,150.14,27.66479]
[1641447345218,15.96170734,150.23,150.14,27.66479]
[1641447345416,11.96170734,150.23,150.14,27.66479]
[1641447347217,11.96170734,150.23,150.15,6.85199319]
[1641447348318,11.96170734,150.23,150.14,27.66479]
[1641447348827,15.96170734,150.23,150.14,27.66479]
[1641447349018,10.65402402,150.22,150.12,92.83499]
[1641447349219,4.0,150.2,150.12,65.1702]
[1641447349418,4.0,150.19,150.06,56.48246655]
[1641447349621,73.91259553,150.18,150.07,62.7864]
[1641447349919,69.91259553,150.18,150.07,62.7864]
[1641447350119,27.66479,150.15,150.07,90.45119]
[1641447351219,27.66479,150.15,150.08,8.24556469]
[1641447352120,3.31148876,150.14,150.08,8.24556469]
[1641447355222,3.31148876,150.14,150.08,1.39336281]
[1641447355421,15.28293379,150.14,150.08,1.39336281]
[1641447355621,84.24383379,150.14,150.08,1.39336281]
[1641447356222,80.24383379,150.14,150.08,1.39336281]
[1641447356622,3.31148876,150.13,150.05,8.24570545]
[1641447357025,3.31148876,150.13,150.05,12.24570545]
[1641447357223,3.31148876,150.13,150.05,8.24570545]
[1641447357425,3.31148876,150.13,150.06,4.0]
[1641447357624,3.31148876,150.13,150.07,4.0]
[1641447357823,3.31148876,150.13,150.06,4.0]
[1641447358224,3.31148876,150.13,150.09,27.66479]
[1641447358423,27.66479,150.15,150.09,27.66479]
[1641447359524,27.66479,150.15,150.1,1.39336281]
[1641447359724,27.66479,150.15,150.1,8.24570545]
[1641447361225,27.66479,150.17,150.1,8.24570545]
[1641447365130,27.66479,150.17,150.1,12.24570545]
[1641447365332,27.66479,150.2,150.1,12.24570545]
[1641447365531,27.66479,150.2,150.1,76.77290545]
[1641447365729,27.66479,150.2,150.11,1.39336281]
[1641447366330,105.65891448,150.24,150.15,27.66479]
[1641447366930,3.31001216,150.19,150.15,27.66479]
[1641447367131,3.31001216,150.19,150.16,4.0]
[1641447367329,1.216e-05,150.19,150.15,27.66479]
[1641447367732,27.66479,150.25,150.16,6.85234264]
[1641447368734,11.95940748,150.24,150.16,10.85234264]
[1641447369233,11.95940748,150.24,150.16,6.85234264]
[1641447369433,11.95940748,150.24,150.17,4.0]
[1641447369633,11.95940748,150.24,150.19,4.0]
[1641447370035,37.63691448,150.26,150.19,4.0]
[1641447370236,49.59632196,150.28,150.2,27.66479]
[1641447371639,11.95940748,150.28,150.2,27.66479]
[1641447372239,11.95940748,150.28,150.23,27.66479]
[1641447373239,11.95940748,150.28,150.23,31.66479]
[1641447373739,11.95940748,150.28,150.23,27.66479]
[1641447373940,11.95940748,150.31,150.23,27.66479]
[1641447374139,4.0,150.3,150.23,27.66479]
[1641447374541,4.0,150.3,150.2,27.66479]
[1641447374740,4.0,150.29,150.2,27.66479]
[1641447374940,10.65048382,150.3,150.2,27.66479]
[1641447375144,37.63691448,150.29,150.2,27.66479]
[1641447375344,41.63691448,150.29,150.2,27.66479]
[1641447375543,37.63691448,150.29,150.2,27.66479]
[1641447375948,37.63691448,150.29,150.2,31.66479]
[1641447376246,37.63691448,150.29,150.23,27.66479]
[1641447376448,37.63691448,150.29,150.2,27.66479]
[1641447376950,37.63691448,150.28,150.2,27.66479]
[1641447378850,41.63691448,150.28,150.2,27.66479]
[1641447379248,37.63691448,150.28,150.2,27.66479]
[1641447379849,41.63691448,150.27,150.2,27.66479]
[1641447380049,37.63691448,150.27,150.2,27.66479]
[1641447380753,31.66479,150.29,150.2,27.66479]
[1641447381553,4.0,150.27,150.2,27.66479]
[1641447381851,72.42136852,150.28,150.2,27.66479]
[1641447382053,4.0,150.26,150.2,27.66479]
[1641447382252,4.0,150.25,150.2,27.66479]
[1641447382454,4.0,150.24,150.17,27.66479]
[1641447383653,6.65269601,150.25,150.17,27.66479]
[1641447385057,27.66479,150.26,150.17,27.66479]
[1641447385457,31.66479,150.26,150.17,27.66479]
[1641447386059,4.0,150.25,150.17,27.66479]
[1641447387660,31.66479,150.26,150.17,27.66479]
[1641447388259,27.66479,150.26,150.17,27.66479]
[1641447389261,4.0,150.23,150.17,27.66479]
[1641447389461,4.0,150.23,150.14,27.66479]
[1641447389660,4.0,150.2,150.14,27.66479]
[1641447389861,4.0,150.2,150.09,66.912]
[1641447390063,4.0,150.15,150.04,60.48246655]
[1641447390262,10.65601704,150.18,150.05,63.6018]
[1641447390461,27.66479,150.15,150.07,27.66479]
[1641447391865,27.66479,150.15,150.08,6.85277655]